bitfinex/quotes_ETHUSD_20241119
["timestamp","ask_amount","ask_price","bid_price","bid_amount"]
[1732038086710,3.20286,3122.2,3122.1,43.55]
[1732038087087,3.20286,3122.2,3122.1,38.0]
[1732038087990,3.20286,3122.2,3122.1,35.0]
[1732038088140,4.51716,3122.2,3122.1,35.0]
[1732038089975,3.20286,3122.2,3122.1,35.0]
[1732038090160,3.20328,3121.8,3121.7,5.0]
[1732038090361,3.20328,3121.8,3121.7,5.55]
[1732038090768,3.20328,3121.8,3121.7,43.55]
[1732038090949,3.20328,3121.8,3121.7,38.55]
[1732038091298,3.20328,3121.8,3121.7,43.55]
[1732038091592,3.20328,3121.8,3121.7,46.69099947]
[1732038091795,3.20317,3121.9,3121.7,46.69099947]
[1732038092027,3.20302,3122.1,3121.8,0.55]
[1732038092304,3.20317,3121.9,3121.8,4.8115]
[1732038092485,3.20302,3122.1,3121.8,4.8115]
[1732038092855,3.20281,3122.3,3122.2,5.0]
[1732038093052,3.20317,3121.9,3121.7,40.0]
[1732038093308,3.20328,3121.8,3121.7,35.0]
[1732038093476,3.20328,3121.8,3120.4,1.60232]
[1732038093477,3.20379,3121.3,3121.1,1.2615]
[1732038093667,3.20389,3121.2,3121.1,6.2615]
[1732038093872,3.20379,3121.3,3121.1,6.2615]
[1732038094181,3.20362,3121.5,3121.2,35.0]
[1732038094387,2.48394879,3121.3,3121.2,35.0]
[1732038094632,2.48394879,3121.3,3121.2,41.69099947]
[1732038095631,2.48394879,3121.3,3121.2,46.69099947]
[1732038096123,3.20337,3121.8,3121.6,5.0]
[1732038096358,3.20337,3121.8,3121.7,1.05]
[1732038096687,3.20337,3121.8,3121.7,36.05]
[1732038098249,3.20337,3121.8,3121.7,35.55]
[1732038098662,3.20317,3122.0,3121.7,44.8369]
[1732038098805,3.20318,3121.9,3121.8,3.55]
[1732038099005,3.20318,3121.9,3121.8,6.69099947]
[1732038099545,3.20293,3122.2,3121.8,6.69099947]
[1732038100646,3.20313,3122.0,3121.8,6.69099947]
[1732038100806,3.20317,3121.9,3121.8,6.69099947]
[1732038102203,3.20313,3122.0,3121.8,6.69099947]
[1732038102485,3.20313,3122.0,3121.7,36.2869]
[1732038102486,3.20319,3121.9,3121.7,35.0]
[1732038102641,3.20288,3122.2,3121.7,35.0]
[1732038102991,3.20287,3122.2,3121.7,35.0]
[1732038103147,3.20287,3122.2,3121.8,3.14099947]
[1732038103348,3.20262,3122.5,3121.8,3.14099947]
[1732038103570,3.20267,3122.4,3121.7,35.0]
[1732038103760,4.07931,3122.6,3121.7,36.60168]
[1732038103968,3.20257,3122.5,3121.7,36.60168]
[1732038104186,3.20257,3122.5,3121.7,35.0]
[1732038104786,1.26306554,3122.6,3121.7,35.0]
[1732038104959,0.795,3122.1,3121.7,38.20337]
[1732038105287,0.795,3122.1,3121.8,3.20322]
[1732038105598,3.99803,3122.1,3121.7,35.0]
[1732038105962,3.2031,3122.0,3121.7,35.0]
[1732038106186,0.795,3122.1,3121.7,35.0]
[1732038106402,0.795,3122.1,3121.8,3.20325]
[1732038106869,0.795,3122.1,3121.7,35.0]
[1732038107075,3.20309,3122.0,3121.7,35.0]
[1732038107372,3.20328,3121.8,3121.7,35.0]
[1732038109015,3.95408,3121.8,3121.7,35.0]
[1732038111314,3.20383,3121.3,3120.6,9.208182]
[1732038111815,3.2041,3121.0,3120.6,0.192142]
[1732038112028,3.20436,3120.8,3120.3,8.2048]
[1732038112170,3.20452,3120.6,3120.1,3.20495]
[1732038112371,0.791,3120.6,3120.4,35.0]
[1732038114401,0.791,3120.6,3119.8,3.20526]
[1732038114725,3.20482,3120.3,3119.8,3.20526]
[1732038114923,3.20482,3120.3,3119.9,35.0]
[1732038115089,3.20463,3120.5,3119.9,38.20522]
[1732038115424,3.20503,3120.1,3119.9,35.0]
[1732038115633,3.96423,3120.1,3119.9,35.0]
[1732038116311,3.20512,3120.0,3119.9,35.0]
[1732038116514,3.96423,3120.1,3119.9,35.0]
[1732038116826,3.20512,3120.0,3119.9,35.0]
[1732038117033,0.01,3119.7,3118.9,3.20625]
[1732038117205,0.822,3119.3,3118.7,3.20639]
[1732038117596,0.822,3119.3,3118.9,3.20617]
[1732038117797,0.822,3119.8,3118.9,0.8149]
[1732038118032,0.822,3119.8,3119.4,3.20569]
[1732038118237,0.822,3119.8,3119.2,3.20594]
[1732038118417,0.822,3119.8,3119.3,35.0]
[1732038118601,0.822,3119.5,3119.3,35.0]
[1732038118804,3.20574,3119.4,3119.3,35.0]
[1732038119194,3.21574,3119.4,3119.3,35.0]
[1732038119585,3.20574,3119.4,3119.3,35.0]
[1732038119990,0.822,3119.5,3119.3,35.0]
[1732038120431,3.20574,3119.4,3119.3,35.0]
[1732038120635,0.825,3119.4,3119.3,35.0]
[1732038120940,0.825,3119.4,3119.3,38.14099947]
[1732038121102,4.03074,3119.4,3119.3,35.0]
[1732038121308,4.04074,3119.4,3119.3,35.0]
[1732038121533,4.05074,3119.4,3119.3,35.0]
[1732038121741,3.20625,3119.0,3118.2,3.20689]
[1732038121939,0.7641,3118.9,3118.4,3.20675]
[1732038122120,3.97036,3118.9,3118.3,3.0]
[1732038122295,3.20637,3118.8,3118.5,35.0]
[1732038122933,3.20656,3118.6,3118.0,3.2071]
[1732038123134,3.20656,3118.6,3118.1,0.32071]
[1732038123336,3.20673,3118.5,3117.8,3.20737]
[1732038123551,0.8035,3118.4,3117.9,35.0]
[1732038123839,4.01028,3118.4,3118.0,3.14099947]
[1732038124045,0.8035,3117.9,3117.4,3.20773]
[1732038124192,0.01,3118.5,3117.2,0.320805]
[1732038124193,3.20677,3118.4,3117.2,0.320805]
[1732038124535,0.8035,3118.3,3117.8,3.20737]
[1732038124736,0.8151,3118.9,3117.9,0.7698]
[1732038125037,0.8051,3118.9,3118.4,3.2067]
[1732038125222,4.01143,3118.9,3118.5,35.0]
[1732038125587,0.8051,3118.9,3118.5,35.0]
[1732038125792,3.20637,3118.8,3118.5,35.0]
[1732038126194,4.01136,3118.9,3118.5,35.0]
[1732038126552,3.20637,3118.8,3118.5,35.0]
[1732038126696,3.20656,3118.6,3118.5,35.0]
[1732038126904,4.01098,3118.5,3117.5,4.02943]
[1732038127132,4.01098,3118.5,3117.9,3.20728]
[1732038127326,0.8043,3118.5,3118.0,3.20718]
[1732038127530,0.8043,3118.5,3118.1,3.20705]
[1732038127835,0.8043,3118.5,3118.1,6.34804947]
[1732038127999,3.20677,3118.4,3118.1,3.14099947]
[1732038128202,0.8043,3118.5,3118.1,3.14099947]
[1732038128533,0.8043,3118.5,3118.1,3.20701]
[1732038129039,0.8066,3118.8,3118.3,3.20683]
[1732038129341,0.8066,3118.8,3118.3,3.848217]
[1732038129696,0.8066,3118.8,3118.3,0.641387]
[1732038130247,4.01298,3118.8,3118.3,0.641387]
[1732038130395,4.01298,3118.8,3117.9,35.0]
[1732038130734,2.8758554,3118.6,3117.9,35.0]
[1732038130941,6.0824954,3118.6,3117.9,38.20719]
[1732038131148,3.20668,3118.5,3117.9,38.20719]
[1732038131342,3.20678,3118.4,3117.9,38.20719]
[1732038131505,2.8758554,3118.3,3117.5,0.402943]
[1732038131708,0.7944,3118.0,3117.2,0.7988]
[1732038131952,0.7944,3118.0,3117.6,3.20752]
[1732038132259,0.7944,3118.0,3117.3,35.0]
[1732038132260,3.20731,3117.9,3117.3,35.0]
[1732038132458,3.6702554,3118.0,3117.5,3.20767]
[1732038132607,0.7944,3118.0,3117.3,35.0]
[1732038132812,0.7944,3118.0,3117.5,3.20769]
[1732038133008,0.7944,3118.0,3117.4,3.14099947]
[1732038133009,0.7944,3118.0,3117.4,6.34876947]
[1732038133203,0.7875,3118.4,3117.9,3.20728]
[1732038133446,0.7875,3118.4,3118.2,3.20697]
[1732038133614,0.7875,3118.4,3118.3,3.20687]
[1732038133816,3.21609,3119.1,3118.3,3.20687]
[1732038133817,0.8186,3118.7,3118.5,3.20659]
[1732038134157,0.8186,3119.1,3118.4,0.816]
[1732038134640,0.8186,3119.1,3118.5,35.0]
[1732038134845,4.02469,3119.1,3118.6,3.14099947]
[1732038135153,4.02469,3119.1,3118.5,38.20666]
[1732038135154,3.20635,3118.9,3118.5,35.0]
[1732038135340,2.8758554,3118.9,3118.5,35.0]
[1732038135534,0.7936,3118.8,3118.5,35.0]
[1732038135848,3.20647,3118.7,3118.5,35.0]
[1732038136658,3.20647,3118.7,3118.1,3.20701]
[1732038136845,0.7936,3118.8,3118.3,0.55]
[1732038137051,0.7936,3118.8,3118.4,3.2067]
[1732038137264,0.7936,3118.8,3118.4,6.34769947]
[1732038137438,0.7971,3119.1,3118.7,3.2064]
[1732038137835,0.7971,3119.1,3118.6,3.20647]
[1732038138136,0.7971,3119.1,3118.7,0.375647]
[1732038138321,0.7971,3119.1,3118.6,3.20655]
[1732038138727,0.7971,3119.1,3118.8,3.20629]
[1732038138966,0.7873,3119.4,3119.1,3.20602]
[1732038139137,0.7873,3120.1,3119.1,3.756]
[1732038139472,0.7873,3120.1,3119.4,3.20573]
[1732038139473,3.20514,3120.0,3119.4,3.20573]
[1732038139633,3.20529,3119.9,3119.5,0.55]
[1732038139995,3.2055,3119.7,3119.4,35.0]
[1732038140825,0.8245,3119.6,3119.4,35.0]
[1732038141278,0.8245,3120.2,3119.7,3.20535]
[1732038141566,3.2051,3120.1,3119.5,0.55]
[1732038141764,3.20531,3119.9,3119.5,0.55]
[1732038142157,3.97523,3119.6,3119.5,0.55]
[1732038142348,0.7697,3119.6,3119.5,0.55]
[1732038142967,0.7697,3120.0,3119.5,0.55]
[1732038143171,0.7697,3120.0,3119.5,3.75562]
[1732038143372,3.20524,3119.9,3119.5,0.55]
[1732038143794,0.7697,3120.0,3119.4,35.0]
[1732038143936,3.20564,3119.5,3119.4,35.0]
[1732038144266,3.20564,3119.5,3119.0,0.55]
[1732038144267,3.20575,3119.4,3119.0,0.55]
[1732038144472,3.20584,3119.3,3118.8,0.55]
[1732038144682,3.20584,3119.3,3118.6,1.14439995]
[1732038144683,3.20595,3119.2,3119.1,35.0]
[1732038145178,3.20608,3119.1,3118.5,3.2066]
[1732038145394,3.20621,3119.0,3118.5,0.641343]
[1732038145541,3.20621,3119.0,3118.6,35.0]
[1732038146147,3.20626,3118.9,3118.6,35.0]
[1732038146347,0.7642,3118.8,3117.9,0.7624]
[1732038146753,0.7642,3118.8,3118.0,0.396972]
[1732038146754,3.20677,3118.4,3118.0,0.396972]
[1732038147310,3.97125,3118.2,3117.6,0.7624]
[1732038147502,3.20711,3118.1,3117.6,0.7624]
[1732038147860,3.20714,3118.1,3117.6,0.7624]
[1732038148067,3.20726,3118.0,3117.5,35.0]
[1732038148365,3.20726,3118.0,3117.6,3.14099947]
[1732038148574,3.20731,3117.9,3117.6,3.14099947]
[1732038148777,6.41454,3118.0,3117.6,3.14099947]
[1732038148998,3.20726,3118.0,3117.7,2.13127239]
[1732038149322,3.20732,3117.9,3117.7,2.13127239]
[1732038149612,3.20689,3118.3,3117.7,2.13127239]
[1732038149907,3.20667,3118.5,3118.0,0.55]
[1732038150223,3.20688,3118.3,3118.0,0.55]
[1732038150712,6.41342,3118.5,3118.0,1.02375972]
[1732038151025,6.41344,3118.5,3118.0,1.02375972]
[1732038151205,0.8295,3118.6,3118.0,1.02375972]
[1732038151504,3.20678,3118.4,3118.0,1.02375972]
[1732038151904,3.2065,3118.7,3118.2,0.55]
[1732038152066,3.20669,3118.5,3118.3,0.375707]
[1732038152275,3.20685,3118.4,3118.0,0.55]
[1732038152489,3.20685,3118.4,3118.0,1.00302272]
[1732038153128,3.20687,3118.3,3118.0,1.00302272]
[1732038153282,3.20708,3118.1,3117.3,3.20789]
[1732038153478,3.20735,3117.9,3117.3,3.20789]
[1732038153801,3.20708,3118.1,3117.2,0.8033]
[1732038153802,3.20712,3118.1,3117.2,0.8033]
[1732038153981,0.397238,3118.1,3117.2,0.8033]
[1732038154185,3.2075,3117.7,3117.2,0.8033]
[1732038154848,3.2075,3117.7,3117.1,3.20809]
[1732038155004,3.2076,3117.6,3117.1,3.20809]
[1732038155201,3.20725,3118.0,3117.3,3.75787]
[1732038155397,0.7653,3118.2,3117.2,0.320809]
[1732038155398,3.97228,3118.2,3117.6,0.55]
[1732038155631,3.20659,3118.6,3117.6,0.55]
[1732038155947,0.7731,3118.7,3118.0,0.55]
[1732038156101,3.20688,3118.3,3117.7,3.2074]
[1732038156300,3.20668,3118.5,3117.9,0.55]
[1732038156553,0.7731,3118.7,3118.0,0.8141]
[1732038156757,3.97958,3118.7,3118.3,0.55]
[1732038156907,0.7731,3118.7,3118.1,4.214212]
[1732038157274,3.20638,3118.8,3118.3,0.55]
[1732038157603,3.20638,3118.8,3118.1,3.75708]
[1732038157853,3.20638,3118.8,3118.3,0.55]
[1732038158144,3.20638,3118.8,3118.2,0.457118]
[1732038158145,3.20658,3118.6,3118.2,0.55]
[1732038158708,3.20673,3118.5,3118.1,0.55]
[1732038158910,3.20687,3118.3,3118.1,0.55]
[1732038159210,3.2073,3117.9,3117.4,3.8223]
[1732038159443,3.2073,3117.9,3117.4,0.8223]
[1732038160057,3.20746,3117.8,3117.5,35.0]
[1732038160340,0.01,3118.3,3117.5,35.0]
[1732038160543,3.20741,3117.8,3117.1,0.8156]
[1732038160715,3.20716,3118.1,3117.1,0.8156]
[1732038160924,0.8203,3118.4,3117.1,0.8156]
[1732038160925,0.8203,3118.4,3117.5,3.20764]
[1732038161157,3.20689,3118.3,3117.7,0.8156]
[1732038161308,3.20689,3118.3,3117.7,4.02306]
[1732038161507,0.8203,3118.4,3117.7,4.02305]
[1732038161713,3.20683,3118.4,3117.9,3.75728]
[1732038161940,3.20657,3118.6,3117.9,3.75728]
[1732038162248,4.02267,3118.7,3118.1,0.55]
[1732038162473,3.20636,3118.8,3118.1,0.55]
[1732038162663,3.20635,3118.9,3118.3,0.55]
[1732038162864,3.20635,3118.9,3118.3,3.75681]
[1732038163061,3.20635,3118.9,3118.5,0.55]
[1732038163062,3.20626,3118.9,3118.5,0.55]
[1732038163266,3.20639,3118.8,3118.3,36.3225]
[1732038163863,3.20639,3118.8,3118.3,39.46349947]
[1732038164071,3.20642,3118.8,3118.3,39.46349947]
[1732038164472,3.20642,3118.8,3118.3,42.67030947]
[1732038164638,3.96601,3119.0,3118.3,42.67028947]
[1732038164835,3.96601,3119.0,3118.3,42.67027947]
[1732038165071,3.96601,3119.0,3118.5,0.55]
[1732038165275,3.20621,3119.0,3118.5,3.75665]
[1732038165490,3.20598,3119.2,3118.7,3.2064]
[1732038165642,3.20598,3119.2,3118.8,0.55]
[1732038166090,3.20607,3119.1,3118.6,0.55]
[1732038166254,3.20598,3119.2,3118.8,0.55]
[1732038166558,3.20594,3119.3,3118.8,0.55]
[1732038166771,6.41144,3119.5,3119.0,0.55]
[1732038167095,3.20575,3119.4,3119.0,0.55]
[1732038167443,3.20564,3119.5,3119.0,0.55]
[1732038167643,3.20564,3119.5,3119.0,3.75614]
[1732038167838,3.20552,3119.7,3119.2,0.55]
[1732038168386,3.20563,3119.6,3119.1,0.55]
[1732038168614,6.41105,3119.7,3119.3,35.0]
[1732038168885,3.20528,3119.9,3119.3,35.0]
[1732038169058,3.20528,3119.9,3119.4,0.55]
[1732038170148,3.20539,3119.8,3119.4,0.55]
[1732038170661,3.20552,3119.7,3119.4,0.55]
[1732038171382,3.20564,3119.5,3119.4,0.55]
[1732038171581,3.99028,3120.0,3119.3,35.0]
[1732038171782,3.20565,3119.5,3119.3,35.0]
[1732038172085,3.20574,3119.4,3119.3,35.0]
[1732038172297,3.20596,3119.2,3118.8,3.0]
[1732038172576,3.20596,3119.2,3118.6,3.20649]
[1732038172577,3.20585,3119.3,3118.7,3.0]
[1732038172782,3.20585,3119.3,3118.8,35.0]
[1732038173093,3.20611,3119.1,3118.8,35.0]
[1732038173389,3.20587,3119.3,3118.8,35.0]
[1732038173741,3.20565,3119.5,3118.9,3.2062]
[1732038173949,3.20565,3119.5,3119.0,3.14099947]
[1732038174148,3.20579,3119.4,3118.8,38.2063]
[1732038174379,3.20579,3119.4,3118.9,0.55]
[1732038175298,3.20579,3119.4,3118.9,3.75625]
[1732038175475,3.20579,3119.4,3118.9,6.89724947]
[1732038176083,3.20579,3119.4,3118.9,3.69099947]
[1732038176256,3.20585,3119.3,3118.9,3.69099947]
[1732038176591,3.20559,3119.6,3119.1,0.55]
[1732038176793,4.03144,3119.7,3119.1,3.75597]
[1732038177152,3.20536,3119.8,3119.3,1.3801]
[1732038178495,3.20554,3119.6,3119.3,1.3801]
[1732038178796,3.20536,3119.8,3119.3,1.3801]
[1732038178797,3.20538,3119.8,3119.3,1.3801]
[1732038179393,3.20555,3119.6,3119.3,1.3801]
[1732038180279,6.4108,3119.8,3119.3,1.3801]
[1732038180590,3.2055,3119.7,3119.3,1.3801]
[1732038180798,3.20553,3119.6,3119.3,1.3801]
[1732038181003,3.20579,3119.4,3119.1,35.696207]
[1732038181180,3.20579,3119.4,3119.2,0.55]
[1732038181349,3.20584,3119.3,3119.1,0.55]
[1732038182578,2.88285101,3119.7,3119.0,0.55]
[1732038182794,3.20612,3119.1,3118.9,35.0]
[1732038183093,3.20615,3119.0,3118.9,35.0]
[1732038183307,0.7598,3119.2,3118.4,0.7899]
[1732038183455,3.20643,3118.8,3118.4,0.7899]
[1732038183651,3.20657,3118.6,3118.1,0.7899]
[1732038184012,0.7598,3118.5,3118.0,35.0]
[1732038184167,3.20708,3118.1,3118.0,35.0]
[1732038184372,3.64265101,3118.5,3118.0,35.0]
[1732038184373,0.7598,3118.5,3118.0,35.0]
[1732038184574,3.2068,3118.4,3118.0,35.0]
[1732038184770,3.20704,3118.2,3118.0,35.0]
[1732038184973,6.41366,3118.4,3117.5,3.20763]
[1732038185174,3.20723,3118.0,3117.6,0.399753]
[1732038185400,3.20723,3118.0,3117.4,0.7899]
[1732038185556,3.20723,3118.0,3117.7,35.0]
[1732038186159,3.20738,3117.9,3117.7,35.0]
[1732038186488,2.88285101,3118.5,3117.7,35.0]
[1732038186701,3.20728,3117.9,3117.8,0.55]
[1732038186860,3.20723,3118.0,3117.8,0.55]
[1732038187209,3.20753,3117.7,3117.5,0.55]
[1732038187509,3.20726,3118.0,3117.5,0.55]
[1732038187661,3.20726,3118.0,3117.7,0.55]
[1732038187855,3.20731,3117.9,3117.7,0.55]
[1732038188096,3.20738,3117.8,3117.7,0.55]
[1732038188916,3.20749,3117.7,3117.6,35.0]
[1732038189712,3.20759,3117.6,3117.2,0.55]
[1732038189917,3.2079,3117.3,3117.2,0.55]
[1732038190073,3.20779,3117.5,3117.1,0.8266]
[1732038190275,3.20748,3117.8,3117.1,0.8266]
[1732038190589,3.20762,3117.6,3117.1,0.8266]
[1732038190794,3.20762,3117.6,3117.1,1.23008]
[1732038191208,3.20763,3117.6,3117.2,35.0]
[1732038191519,3.20763,3117.6,3117.3,0.55]
[1732038191677,3.20748,3117.8,3117.3,3.14099947]
[1732038191876,3.20748,3117.8,3117.2,3.75797]
[1732038192079,3.20748,3117.8,3117.4,0.55]
[1732038192565,3.20748,3117.8,3117.2,3.75793]
[1732038192766,3.20728,3117.9,3117.3,3.20789]
[1732038192926,3.20728,3117.9,3117.4,0.55]
[1732038193126,3.20701,3118.2,3117.4,35.55]
[1732038193327,3.20701,3118.2,3117.5,0.7918]
[1732038193530,3.20689,3118.3,3117.6,3.7575]
[1732038193743,3.207,3118.2,3117.6,3.75758]
[1732038193958,3.20704,3118.2,3117.6,36.325699]
[1732038194378,3.20681,3118.4,3117.8,0.55]
[1732038194540,3.20689,3118.3,3117.8,0.55]
[1732038194748,3.2067,3118.5,3118.0,0.55]
[1732038195045,3.20638,3118.8,3118.2,0.55]
[1732038195262,3.20638,3118.8,3118.2,1.004898]
[1732038195433,3.20626,3118.9,3118.3,3.20687]
[1732038195632,3.20644,3118.8,3118.5,0.55]
[1732038195838,3.20644,3118.8,3118.3,0.55]
[1732038196077,3.20646,3118.7,3118.3,0.55]
[1732038196287,3.20627,3118.9,3118.3,0.55]
[1732038196496,3.20637,3118.8,3118.3,0.55]
[1732038196647,3.20627,3118.9,3118.5,0.55]
[1732038197106,0.8093,3119.0,3118.5,0.55]
[1732038197457,3.20653,3118.7,3118.5,0.55]
[1732038197674,3.20666,3118.5,3118.4,35.0]
[1732038198392,3.20701,3118.2,3117.8,0.7917]
[1732038198544,3.20726,3118.0,3117.8,0.7917]
[1732038198740,3.20701,3118.2,3117.8,0.7917]
[1732038198944,3.2071,3118.1,3117.8,0.7917]
[1732038199403,3.2071,3118.1,3117.6,0.775699]
[1732038199687,3.20735,3117.9,3117.5,0.82]
[1732038199892,3.20725,3118.0,3117.6,35.0]
[1732038200049,3.2071,3118.1,3117.6,35.0]
[1732038200244,3.20729,3117.9,3117.6,35.0]
[1732038200445,3.2071,3118.1,3117.6,41.34855947]
[1732038200641,3.2071,3118.1,3117.7,0.55]
[1732038201292,6.41427,3118.1,3117.8,35.0]
[1732038201493,3.2071,3118.1,3117.8,35.0]
[1732038201700,3.20728,3117.9,3117.8,35.0]
[1732038202552,3.20752,3117.7,3117.3,0.55]
[1732038202898,3.20767,3117.6,3117.3,0.55]
[1732038203051,3.20752,3117.7,3117.5,0.55]
[1732038203447,3.20752,3117.7,3117.3,0.55]
[1732038203654,3.20752,3117.7,3117.3,1.02308]
[1732038203872,3.20752,3117.7,3117.5,0.55]
[1732038204267,3.20727,3118.0,3117.4,0.55]
[1732038204572,3.20718,3118.0,3117.6,0.55]
[1732038204771,3.20718,3118.0,3117.7,35.0]
[1732038204970,3.20728,3117.9,3117.8,0.55]
[1732038205283,3.20728,3117.9,3117.7,35.0]
[1732038205463,3.20738,3117.8,3117.7,35.55]
[1732038205662,3.20738,3117.8,3117.7,35.0]
[1732038205918,3.20738,3117.8,3117.7,35.55]
[1732038206264,3.20719,3118.0,3117.7,35.55]
[1732038206464,3.20728,3117.9,3117.7,35.55]
[1732038206717,3.20738,3117.8,3117.7,35.55]
[1732038207366,3.20725,3118.0,3117.7,35.55]
[1732038207566,3.20703,3118.2,3117.7,35.55]
[1732038207768,3.20703,3118.2,3117.8,0.55]
[1732038208400,3.20728,3117.9,3117.8,0.55]
[1732038208718,3.20738,3117.8,3117.7,35.0]
[1732038209500,3.20714,3118.1,3117.7,35.0]
[1732038209704,0.7682,3118.4,3117.7,38.14099947]
[1732038210011,3.20699,3118.2,3117.8,1.3783]
[1732038210334,0.8027,3118.7,3117.9,3.20722]
[1732038210609,3.20667,3118.5,3118.0,3.75715]
[1732038210913,3.68726886,3118.7,3118.0,0.55]
[1732038211219,3.20694,3118.3,3118.0,0.55]
[1732038211432,3.20694,3118.3,3118.1,0.36909995]
[1732038211592,3.20694,3118.3,3118.2,0.55]
[1732038211792,6.41348,3118.5,3118.2,0.55]
[1732038211992,3.20672,3118.5,3118.2,0.55]
[1732038212245,3.20637,3118.8,3118.2,0.962625]
[1732038212558,3.20708,3118.1,3117.9,3.14099947]
[1732038212746,3.20708,3118.1,3117.8,0.8283]
[1732038213537,3.20694,3118.3,3117.9,35.0]
[1732038213841,3.20694,3118.3,3118.0,0.55]
[1732038214130,3.20698,3118.2,3118.0,3.69099947]
[1732038214300,3.96761,3118.5,3118.0,3.69099947]
[1732038214501,3.20667,3118.5,3118.0,3.69099947]
[1732038214704,3.20667,3118.5,3118.2,0.55]
[1732038215291,6.41342,3118.5,3118.0,0.55]
[1732038215486,6.41342,3118.5,3118.2,0.55]
[1732038216036,0.8187,3118.8,3118.2,0.55]
[1732038216232,3.20678,3118.4,3118.2,0.55]
[1732038216438,3.20699,3118.2,3117.9,0.55]
[1732038216941,3.20688,3118.3,3117.9,0.55]
[1732038217232,3.20704,3118.2,3117.9,0.55]
[1732038217441,3.20703,3118.2,3117.9,0.55]
[1732038218239,3.20682,3118.4,3117.9,3.75725]
[1732038218549,3.20682,3118.4,3118.1,0.55]
[1732038218550,3.20693,3118.3,3118.1,0.55]
[1732038218925,3.20693,3118.3,3117.9,0.55]
[1732038219122,0.8187,3118.8,3117.9,0.55]
[1732038219123,3.20703,3118.2,3117.9,0.55]
[1732038219364,3.2068,3118.4,3117.9,0.55]
[1732038219576,3.20688,3118.3,3117.9,0.55]
[1732038219725,3.20688,3118.3,3117.9,1.008572]
[1732038220127,0.8047,3119.1,3118.2,0.55]
[1732038220365,0.8047,3119.1,3118.1,3.207]
[1732038220366,3.20645,3118.8,3118.4,0.55]
[1732038220957,3.20652,3118.7,3118.4,0.55]
[1732038221341,3.20663,3118.6,3118.4,0.55]
[1732038221682,3.20666,3118.5,3118.4,0.55]
[1732038221834,3.20666,3118.5,3118.1,0.55]
[1732038222718,3.2068,3118.4,3118.1,0.55]
[1732038223002,3.20663,3118.6,3118.1,0.55]
[1732038223566,3.20641,3118.8,3118.1,1.009006]
[1732038223781,3.20641,3118.8,3118.3,0.55]
[1732038224100,3.2065,3118.7,3118.3,0.55]
[1732038224251,3.2065,3118.7,3118.2,0.55]
[1732038224587,3.2065,3118.7,3118.2,1.3205966]
[1732038224794,3.20641,3118.8,3118.2,1.3205966]
[1732038225104,3.20648,3118.7,3118.2,1.3205966]
[1732038225482,3.20657,3118.6,3118.2,1.3205966]
[1732038225799,3.20643,3118.8,3118.2,4.5275066]
[1732038226001,3.20643,3118.8,3118.4,0.55]
[1732038226169,3.20621,3119.0,3118.4,0.55]
[1732038226376,3.20626,3118.9,3118.4,0.55]
[1732038226578,3.20626,3118.9,3118.4,3.75675]
[1732038226775,0.8047,3119.1,3118.4,3.75675]
[1732038226776,3.20616,3119.0,3118.5,0.8273]
[1732038226978,3.20616,3119.0,3118.6,0.55]
[1732038227178,2.97001421,3119.3,3118.6,0.55]
[1732038227179,3.20634,3118.9,3118.6,0.55]
[1732038227379,3.20642,3118.8,3118.6,0.55]
[1732038227579,3.20632,3118.9,3118.6,0.55]
[1732038227806,3.20617,3119.0,3118.6,0.55]
[1732038228283,2.97001421,3119.3,3118.6,0.55]
[1732038228284,3.20597,3119.2,3118.6,0.55]
[1732038228605,3.20597,3119.2,3118.6,1.008396]
[1732038228908,3.20584,3119.3,3118.8,3.20634]
[1732038229208,3.20602,3119.2,3118.6,4.214896]
[1732038229411,3.20607,3119.1,3118.6,0.55]
[1732038229582,3.20607,3119.1,3118.6,1.008403]
[1732038230913,3.206,3119.2,3118.6,4.214903]
[1732038231097,3.20607,3119.1,3118.6,4.214903]
[1732038231406,3.20616,3119.0,3118.6,1.008403]
[1732038232211,3.2061,3119.1,3118.6,1.008403]
[1732038233117,3.20616,3119.0,3118.6,1.008403]
[1732038233317,3.2061,3119.1,3118.6,1.008403]
[1732038234968,3.20618,3119.0,3118.6,1.008403]
[1732038235210,3.20646,3118.7,3118.5,0.8273]
[1732038235410,3.2063,3118.9,3118.5,0.8273]
[1732038235782,3.20637,3118.8,3118.5,0.8273]
[1732038236184,3.2063,3118.9,3118.5,0.8273]
[1732038236389,3.20637,3118.8,3118.5,0.8273]
[1732038236611,3.20637,3118.8,3118.6,0.55]
[1732038236820,3.20646,3118.7,3118.6,0.55]
[1732038237187,3.20637,3118.8,3118.6,0.55]
[1732038237572,3.20646,3118.7,3118.6,0.55]
[1732038238515,3.20656,3118.6,3118.5,0.55]
[1732038239000,3.20669,3118.5,3118.2,0.55]
[1732038239367,3.20652,3118.7,3118.2,1.304928]
[1732038239571,6.41265,3118.9,3118.3,3.20687]
[1732038239805,3.20631,3118.9,3118.4,0.55]